[Event "Live Chess"]
[Site "Chess.com"]
[Date "2023.05.20"]
[Round "-"]
[White "Leonid_Starozhilov"]
[Black "Pablo_dmp"]
[Result "1-0"]
[WhiteElo "2637"]
[BlackElo "1887"]
[TimeControl "300"]
[EndTime "13:16:44 PDT"]
[Termination "Leonid_Starozhilov won by resignation"]

1. e4 {[%clk 0:04:58.8]} 1... c6 {[%clk 0:04:58.1]} 2. d4 {[%clk 0:04:57.3]}
2... d5 {[%clk 0:04:57.2]} 3. e5 {[%clk 0:04:56.7]} 3... c5 {[%clk 0:04:56.5]}
4. Nf3 {[%clk 0:04:54.1]} 4... cxd4 {[%clk 0:04:55.1]} 5. Qxd4 {[%clk
0:04:53.7]} 5... Nc6 {[%clk 0:04:53.8]} 6. Qf4 {[%clk 0:04:52.7]} 6... e6 {[%clk
0:04:52.6]} 7. Nc3 {[%clk 0:04:45.2]} 7... Nge7 {[%clk 0:04:36.7]} 8. Bd3 {[%clk
0:04:41.3]} 8... Ng6 {[%clk 0:04:31.9]} 9. Bxg6 {[%clk 0:04:32.3]} 9... hxg6
{[%clk 0:04:31.8]} 10. a3 {[%clk 0:04:28.1]} 10... Qc7 {[%clk 0:04:16]} 11. Be3
{[%clk 0:04:22.3]} 11... Be7 {[%clk 0:04:10.2]} 12. h4 {[%clk 0:04:20.6]} 12...
Bd7 {[%clk 0:04:07.4]} 13. O-O-O {[%clk 0:04:13.2]} 13... Na5 {[%clk 0:04:03.6]}
14. Ng5 {[%clk 0:03:53]} 14... Bxg5 {[%clk 0:03:58.8]} 15. hxg5 {[%clk
0:03:51.3]} 15... Rxh1 {[%clk 0:03:58.7]} 16. Rxh1 {[%clk 0:03:49.6]} 16...
O-O-O {[%clk 0:03:55.3]} 17. Qxf7 {[%clk 0:03:45.1]} 17... Nc4 {[%clk
0:03:45.7]} 18. Qxg7 {[%clk 0:03:38.3]} 18... Be8 {[%clk 0:03:40.1]} 19. Qxc7+
{[%clk 0:03:37]} 19... Kxc7 {[%clk 0:03:40]} 20. Rh7+ {[%clk 0:03:35.5]} 20...
Rd7 {[%clk 0:03:38.7]} 21. Rxd7+ {[%clk 0:03:32.9]} 21... Kxd7 {[%clk
0:03:38.6]} 22. Bd4 {[%clk 0:03:31.9]} 22... a6 {[%clk 0:03:33.1]} 23. Ne2
{[%clk 0:03:26.7]} 23... Kc6 {[%clk 0:03:29.5]} 24. Nf4 {[%clk 0:03:23.4]} 24...
Bf7 {[%clk 0:03:27]} 25. Nd3 {[%clk 0:03:19.2]} 25... b5 {[%clk 0:03:20.4]} 26.
f4 {[%clk 0:03:07.5]} 26... Be8 {[%clk 0:03:14.7]} 27. b3 {[%clk 0:02:58.7]}
27... Na5 {[%clk 0:03:01.9]} 28. Bc3 {[%clk 0:02:53]} 28... Nb7 {[%clk
0:03:00.6]} 29. Nb4+ {[%clk 0:02:50.3]} 29... Kb6 {[%clk 0:02:54.9]} 30. Bd4+
{[%clk 0:02:49.6]} 30... Ka5 {[%clk 0:02:52.1]} 31. Nd3 {[%clk 0:02:36.7]} 31...
b4 {[%clk 0:02:37.4]} 32. axb4+ {[%clk 0:02:20.1]} 32... Kb5 {[%clk 0:02:35.9]}
33. g4 {[%clk 0:02:16.3]} 33... Bd7 {[%clk 0:02:21.4]} 34. Kb2 {[%clk 0:02:14]}
34... Bc8 {[%clk 0:02:17.5]} 35. Ka3 {[%clk 0:02:12.7]} 35... Bd7 {[%clk
0:02:15.8]} 36. Nb2 {[%clk 0:02:11.9]} 36... a5 {[%clk 0:02:13.5]} 37. c4+
{[%clk 0:02:10.2]} 37... dxc4 {[%clk 0:02:11.5]} 38. bxc4+ {[%clk 0:02:10.1]}
38... Ka6 {[%clk 0:02:10.8]} 39. b5+ {[%clk 0:02:09.6]} 1-0

[Event "Live Chess"]
[Site "Chess.com"]
[Date "2023.05.20"]
[Round "-"]
[White "SavagePawn7"]
[Black "reshmiramachandran"]
[Result "1-0"]
[WhiteElo "796"]
[BlackElo "507"]
[TimeControl "300"]
[EndTime "13:16:48 PDT"]
[Termination "SavagePawn7 won by checkmate"]

1. e4 {[%clk 0:04:57.4]} 1... c5 {[%clk 0:04:58.3]} 2. d4 {[%clk 0:04:54.6]}
2... cxd4 {[%clk 0:04:56.6]} 3. c3 {[%clk 0:04:53.6]} 3... dxc3 {[%clk
0:04:54.6]} 4. Nxc3 {[%clk 0:04:52.3]} 4... e5 {[%clk 0:04:52.3]} 5. Bc4 {[%clk
0:04:47.4]} 5... Nf6 {[%clk 0:04:50.1]} 6. Nf3 {[%clk 0:04:45.4]} 6... Nc6
{[%clk 0:04:44]} 7. Bg5 {[%clk 0:04:35.4]} 7... h6 {[%clk 0:04:40.2]} 8. Bxf6
{[%clk 0:04:33.4]} 8... Qxf6 {[%clk 0:04:37.9]} 9. O-O {[%clk 0:04:31.3]} 9...
Bc5 {[%clk 0:04:33.8]} 10. Nd5 {[%clk 0:04:28.9]} 10... Qd8 {[%clk 0:04:17.1]}
11. Rc1 {[%clk 0:03:46.6]} 11... d6 {[%clk 0:04:14.7]} 12. Re1 {[%clk
0:03:43.2]} 12... O-O {[%clk 0:04:11.6]} 13. Qe2 {[%clk 0:03:41.5]} 13... Bg4
{[%clk 0:04:09.1]} 14. h3 {[%clk 0:03:39.3]} 14... Bh5 {[%clk 0:04:07.4]} 15. g4
{[%clk 0:03:29.1]} 15... Bg6 {[%clk 0:04:02]} 16. h4 {[%clk 0:03:07.7]} 16...
Nd4 {[%clk 0:03:43]} 17. Nxd4 {[%clk 0:02:46.6]} 17... Bxd4 {[%clk 0:03:40.5]}
18. h5 {[%clk 0:01:53.6]} 18... Bh7 {[%clk 0:03:36.3]} 19. Qf3 {[%clk
0:01:37.6]} 19... Qh4 {[%clk 0:03:30.8]} 20. Ne7+ {[%clk 0:01:13.6]} 20... Qxe7
{[%clk 0:03:28]} 21. Bb3 {[%clk 0:01:07]} 21... Qh4 {[%clk 0:03:11.7]} 22. Re2
{[%clk 0:00:54.3]} 22... Rac8 {[%clk 0:03:02.9]} 23. Rec2 {[%clk 0:00:48.9]}
23... Rxc2 {[%clk 0:02:56.7]} 24. Rxc2 {[%clk 0:00:47.6]} 24... Qg5 {[%clk
0:02:22.4]} 25. Rc7 {[%clk 0:00:37.9]} 25... b5 {[%clk 0:02:04.4]} 26. Rxf7
{[%clk 0:00:34.1]} 26... Rxf7 {[%clk 0:02:01.1]} 27. Qxf7+ {[%clk 0:00:31.7]}
27... Kh8 {[%clk 0:01:59.9]} 28. Qf8+ {[%clk 0:00:23.4]} 28... Bg8 {[%clk
0:01:53.8]} 29. Qxg8# {[%clk 0:00:21.7]} 1-0

[Event "Live Chess"]
[Site "Chess.com"]
[Date "2023.05.20"]
[Round "-"]
[White "ossie57"]
[Black "Sacbutt"]
[Result "1-0"]
[WhiteElo "1944"]
[BlackElo "2184"]
[TimeControl "300"]
[EndTime "13:16:49 PDT"]
[Termination "ossie57 won on time"]

1. d4 {[%clk 0:04:58.5]} 1... Nf6 {[%clk 0:04:57.6]} 2. Nc3 {[%clk 0:04:57.6]}
2... d5 {[%clk 0:04:54.4]} 3. Bf4 {[%clk 0:04:56.8]} 3... Bf5 {[%clk 0:04:48.9]}
4. e3 {[%clk 0:04:53.4]} 4... e6 {[%clk 0:04:47.6]} 5. a3 {[%clk 0:04:46.1]}
5... a6 {[%clk 0:04:36.8]} 6. f3 {[%clk 0:04:34.3]} 6... Be7 {[%clk 0:04:23.6]}
7. g4 {[%clk 0:04:32.8]} 7... Bg6 {[%clk 0:04:21.3]} 8. h4 {[%clk 0:04:32.4]}
8... h5 {[%clk 0:04:18]} 9. g5 {[%clk 0:04:31.4]} 9... Nfd7 {[%clk 0:04:12.8]}
10. Qd2 {[%clk 0:04:30.8]} 10... c5 {[%clk 0:04:08.7]} 11. Bd3 {[%clk
0:04:15.6]} 11... Bxd3 {[%clk 0:04:06.3]} 12. Qxd3 {[%clk 0:04:14.1]} 12... g6
{[%clk 0:04:03.4]} 13. O-O-O {[%clk 0:04:03.2]} 13... Nc6 {[%clk 0:03:52.2]} 14.
Nge2 {[%clk 0:03:55.5]} 14... O-O {[%clk 0:03:48.2]} 15. e4 {[%clk 0:03:42.2]}
15... cxd4 {[%clk 0:03:06]} 16. Nxd4 {[%clk 0:03:34.4]} 16... Nxd4 {[%clk
0:02:22.4]} 17. Qxd4 {[%clk 0:03:32.6]} 17... Bc5 {[%clk 0:02:21.3]} 18. Qd2
{[%clk 0:03:20.1]} 18... d4 {[%clk 0:02:06.9]} 19. Na4 {[%clk 0:02:52.8]} 19...
Ba7 {[%clk 0:02:04.9]} 20. e5 {[%clk 0:02:40.5]} 20... b5 {[%clk 0:01:58.9]} 21.
Nc3 {[%clk 0:02:28.7]} 21... Qc7 {[%clk 0:01:12.1]} 22. Ne4 {[%clk 0:02:16.1]}
22... Rfd8 {[%clk 0:01:11]} 23. Nf6+ {[%clk 0:02:10.8]} 23... Nxf6 {[%clk
0:01:06.8]} 24. exf6 {[%clk 0:02:06.8]} 24... Qc4 {[%clk 0:01:00.2]} 25. b3
{[%clk 0:01:56.8]} 25... Qc5 {[%clk 0:00:57.9]} 26. Kb2 {[%clk 0:01:54.5]} 26...
Rac8 {[%clk 0:00:55.8]} 27. Qd3 {[%clk 0:01:52.9]} 27... a5 {[%clk 0:00:45]} 28.
Rhe1 {[%clk 0:01:50.7]} 28... Rd5 {[%clk 0:00:39]} 29. Bd2 {[%clk 0:01:10.7]}
29... b4 {[%clk 0:00:36.7]} 30. a4 {[%clk 0:01:09.8]} 30... Rf5 {[%clk
0:00:33.7]} 31. f4 {[%clk 0:01:07]} 31... Qc6 {[%clk 0:00:31.7]} 32. Re2 {[%clk
0:00:39.3]} 32... Rc5 {[%clk 0:00:29.8]} 33. Rc1 {[%clk 0:00:35.7]} 33... Rf5
{[%clk 0:00:27.2]} 34. Qe4 {[%clk 0:00:32.3]} 34... Qc7 {[%clk 0:00:21.7]} 35.
Be1 {[%clk 0:00:29.6]} 35... Rd5 {[%clk 0:00:19.6]} 36. Qd3 {[%clk 0:00:28.4]}
36... Qd6 {[%clk 0:00:17.7]} 37. Bg3 {[%clk 0:00:26.4]} 37... Qc6 {[%clk
0:00:16.1]} 38. Rd2 {[%clk 0:00:25]} 38... Qc3+ {[%clk 0:00:14.8]} 39. Kb1
{[%clk 0:00:21.7]} 39... Qxd3 {[%clk 0:00:11.5]} 40. Rxd3 {[%clk 0:00:20.6]}
40... Rdc5 {[%clk 0:00:10.6]} 41. Rd2 {[%clk 0:00:19.5]} 41... Rc3 {[%clk
0:00:09.8]} 42. Bf2 {[%clk 0:00:17.1]} 42... d3 {[%clk 0:00:05.7]} 43. Bxa7
{[%clk 0:00:15]} 43... dxc2+ {[%clk 0:00:02.1]} 44. Rdxc2 {[%clk 0:00:14.2]}
44... Rxb3+ {[%clk 0:00:00.2]} 45. Ka2 {[%clk 0:00:11.9]} 1-0

[Event "Live Chess"]
[Site "Chess.com"]
[Date "2023.05.20"]
[Round "-"]
[White "Jo1ts"]
[Black "WelshTiger"]
[Result "0-1"]
[WhiteElo "729"]
[BlackElo "2413"]
[TimeControl "300"]
[EndTime "13:17:03 PDT"]
[Termination "WelshTiger won by resignation"]

1. d4 {[%clk 0:04:58.2]} 1... e6 {[%clk 0:04:58.2]} 2. Bf4 {[%clk 0:04:56.5]}
2... c5 {[%clk 0:04:57.2]} 3. c3 {[%clk 0:04:51.2]} 3... cxd4 {[%clk 0:04:53]}
4. cxd4 {[%clk 0:04:49.4]} 4... Qb6 {[%clk 0:04:51.2]} 5. Qd2 {[%clk 0:04:36.5]}
5... d5 {[%clk 0:04:48.5]} 6. Nf3 {[%clk 0:04:34.8]} 6... Nc6 {[%clk 0:04:47.4]}
7. b3 {[%clk 0:04:27.7]} 7... Nf6 {[%clk 0:04:44.6]} 8. Nc3 {[%clk 0:04:22.7]}
8... Bb4 {[%clk 0:04:39.9]} 9. e3 {[%clk 0:04:11.9]} 9... Ne4 {[%clk 0:04:37.2]}
10. Qd3 {[%clk 0:03:42.7]} 10... Bxc3+ {[%clk 0:04:34.5]} 11. Nd2 {[%clk
0:03:32.3]} 11... Bxd2+ {[%clk 0:04:25.9]} 0-1

[Event "Live Chess"]
[Site "Chess.com"]
[Date "2023.05.20"]
[Round "-"]
[White "OleksiyJr1"]
[Black "chessleanstrategist"]
[Result "1-0"]
[WhiteElo "963"]
[BlackElo "398"]
[TimeControl "300"]
[EndTime "13:17:12 PDT"]
[Termination "OleksiyJr1 won by resignation"]

1. e4 {[%clk 0:04:54.5]} 1... d6 {[%clk 0:04:58.8]} 2. Nf3 {[%clk 0:04:51.9]}
2... Nf6 {[%clk 0:04:58.4]} 3. Nc3 {[%clk 0:04:49.7]} 3... g6 {[%clk 0:04:57.9]}
4. d4 {[%clk 0:04:49]} 4... Nc6 {[%clk 0:04:56.6]} 5. e5 {[%clk 0:04:48.6]} 5...
dxe5 {[%clk 0:04:53.9]} 6. Nxe5 {[%clk 0:04:47.8]} 6... Nxe5 {[%clk 0:04:52.1]}
7. dxe5 {[%clk 0:04:46.6]} 7... Nd7 {[%clk 0:04:49.6]} 8. Bb5 {[%clk 0:04:43.6]}
8... c6 {[%clk 0:04:45.9]} 9. Bc4 {[%clk 0:04:40.7]} 9... Nxe5 {[%clk
0:04:43.8]} 10. Qxd8+ {[%clk 0:04:36.3]} 10... Kxd8 {[%clk 0:04:43.3]} 11. Bf4
{[%clk 0:04:35.5]} 11... Nxc4 {[%clk 0:04:23.2]} 12. O-O-O+ {[%clk 0:04:32.2]}
12... Nd6 {[%clk 0:04:10.4]} 13. Rd2 {[%clk 0:04:28]} 13... Ke8 {[%clk
0:03:52.4]} 14. Re1 {[%clk 0:04:23.8]} 14... e6 {[%clk 0:03:45.2]} 15. Bxd6
{[%clk 0:04:20.6]} 15... Bxd6 {[%clk 0:03:42.6]} 16. Rxd6 {[%clk 0:04:20.5]}
16... Ke7 {[%clk 0:03:34.8]} 17. Rd4 {[%clk 0:04:18.6]} 17... Rd8 {[%clk
0:03:30.5]} 18. Rde4 {[%clk 0:04:14.5]} 18... f5 {[%clk 0:03:27.8]} 19. Re5
{[%clk 0:04:12.7]} 19... b5 {[%clk 0:03:20.1]} 20. h3 {[%clk 0:04:07.5]} 20...
Bb7 {[%clk 0:03:18.7]} 21. g4 {[%clk 0:04:06.8]} 21... fxg4 {[%clk 0:03:10]} 22.
hxg4 {[%clk 0:04:06.7]} 22... Rd5 {[%clk 0:02:59.6]} 23. Nxd5+ {[%clk
0:04:03.8]} 23... cxd5 {[%clk 0:02:59.1]} 24. Rxe6+ {[%clk 0:04:02.8]} 24... Kd7
{[%clk 0:02:50.1]} 25. Re7+ {[%clk 0:04:01.6]} 25... Kc6 {[%clk 0:02:49.1]} 26.
Rxh7 {[%clk 0:04:00.3]} 26... Rd8 {[%clk 0:02:35.6]} 27. Re6+ {[%clk 0:04:00.2]}
27... Rd6 {[%clk 0:02:34.1]} 28. Rxd6+ {[%clk 0:03:57.5]} 28... Kxd6 {[%clk
0:02:33.2]} 29. Rxb7 {[%clk 0:03:57.3]} 29... Ke5 {[%clk 0:02:22.3]} 30. Rxa7
{[%clk 0:03:57.2]} 30... Kf4 {[%clk 0:02:20.7]} 31. Ra6 {[%clk 0:03:57.1]} 31...
Kxg4 {[%clk 0:02:19.3]} 32. Rxg6+ {[%clk 0:03:57]} 32... Kf4 {[%clk 0:02:12.2]}
33. Rd6 {[%clk 0:03:56.9]} 33... Kf3 {[%clk 0:02:07.5]} 34. Rxd5 {[%clk
0:03:55.9]} 34... Kxf2 {[%clk 0:02:07]} 35. Rxb5 {[%clk 0:03:55.8]} 35... Ke3
{[%clk 0:02:04.2]} 36. c4 {[%clk 0:03:55.7]} 36... Kd4 {[%clk 0:02:02]} 37. c5
{[%clk 0:03:55.6]} 37... Kc4 {[%clk 0:01:59]} 38. c6 {[%clk 0:03:55.5]} 38...
Kxb5 {[%clk 0:01:58.3]} 39. c7 {[%clk 0:03:55.4]} 39... Kb6 {[%clk 0:01:57.3]}
40. c8=Q {[%clk 0:03:54.8]} 1-0

[Event "Live Chess"]
[Site "Chess.com"]
[Date "2023.05.20"]
[Round "-"]
[White "lightningorderyt"]
[Black "LiamBellwood"]
[Result "0-1"]
[WhiteElo "524"]
[BlackElo "2056"]
[TimeControl "300"]
[EndTime "13:17:13 PDT"]
[Termination "LiamBellwood won by resignation"]

1. d4 {[%clk 0:04:59]} 1... e6 {[%clk 0:04:59.9]} 2. e4 {[%clk 0:04:57.3]} 2...
d5 {[%clk 0:04:59.3]} 3. Nc3 {[%clk 0:04:54.3]} 3... Nf6 {[%clk 0:04:58.3]} 4.
e5 {[%clk 0:04:53.1]} 4... Ng8 {[%clk 0:04:57.5]} 5. Nf3 {[%clk 0:04:51]} 5...
c5 {[%clk 0:04:56.9]} 6. Be3 {[%clk 0:04:45.9]} 6... Nc6 {[%clk 0:04:55.4]} 7.
Bb5 {[%clk 0:04:33.9]} 7... Bd7 {[%clk 0:04:54.3]} 8. dxc5 {[%clk 0:04:29.9]}
8... Qa5 {[%clk 0:04:52.1]} 9. O-O {[%clk 0:04:12.5]} 9... Nge7 {[%clk
0:04:48.3]} 10. a3 {[%clk 0:03:50.5]} 10... Nf5 {[%clk 0:04:44.7]} 11. Bf4
{[%clk 0:03:39.2]} 11... Qc7 {[%clk 0:04:07.3]} 12. b4 {[%clk 0:03:12.3]} 12...
Be7 {[%clk 0:04:00.1]} 13. Ne2 {[%clk 0:03:00.3]} 13... O-O {[%clk 0:03:53.4]}
14. c4 {[%clk 0:02:52.4]} 14... a6 {[%clk 0:03:37.6]} 15. Bxc6 {[%clk
0:02:39.9]} 15... Bxc6 {[%clk 0:03:32.6]} 16. Nc3 {[%clk 0:02:32.3]} 16... dxc4
{[%clk 0:03:26.1]} 17. Qc2 {[%clk 0:02:18.6]} 17... Bxf3 {[%clk 0:03:22.7]} 18.
gxf3 {[%clk 0:02:15.5]} 18... Nd4 {[%clk 0:03:21.6]} 19. Qd2 {[%clk 0:02:00]}
19... Nxf3+ {[%clk 0:03:20.4]} 0-1

[Event "Live Chess"]
[Site "Chess.com"]
[Date "2023.05.20"]
[Round "-"]
[White "VovaOvchar1990"]
[Black "f4nomore"]
[Result "0-1"]
[WhiteElo "1213"]
[BlackElo "1369"]
[TimeControl "300"]
[EndTime "13:17:34 PDT"]
[Termination "f4nomore won on time"]

1. e4 {[%clk 0:04:54.1]} 1... g6 {[%clk 0:04:59.9]} 2. Bc4 {[%clk 0:04:52.7]}
2... Bg7 {[%clk 0:04:59.8]} 3. Qf3 {[%clk 0:04:51.5]} 3... e6 {[%clk 0:04:57.4]}
4. Nc3 {[%clk 0:04:49.9]} 4... d6 {[%clk 0:04:56.4]} 5. Nge2 {[%clk 0:04:46.6]}
5... Bd7 {[%clk 0:04:55.3]} 6. d3 {[%clk 0:04:44.6]} 6... Ne7 {[%clk 0:04:53.6]}
7. O-O {[%clk 0:04:43]} 7... O-O {[%clk 0:04:52.3]} 8. h3 {[%clk 0:04:42.3]}
8... c6 {[%clk 0:04:49.6]} 9. d4 {[%clk 0:04:38.8]} 9... d5 {[%clk 0:04:47.2]}
10. exd5 {[%clk 0:04:36.9]} 10... cxd5 {[%clk 0:04:45.5]} 11. Bd3 {[%clk
0:04:32.7]} 11... Nbc6 {[%clk 0:04:40.9]} 12. Nd1 {[%clk 0:04:27.6]} 12... Nxd4
{[%clk 0:04:26]} 13. Nxd4 {[%clk 0:04:23.5]} 13... Bxd4 {[%clk 0:04:23.6]} 14.
Bg5 {[%clk 0:04:14.3]} 14... Bg7 {[%clk 0:04:20.1]} 15. Ne3 {[%clk 0:04:09.8]}
15... f6 {[%clk 0:04:12.8]} 16. Bh4 {[%clk 0:04:05.5]} 16... Qb6 {[%clk
0:04:03.7]} 17. b3 {[%clk 0:04:02.2]} 17... Bc6 {[%clk 0:03:58.3]} 18. Ng4
{[%clk 0:03:53.4]} 18... d4 {[%clk 0:03:52.1]} 19. Qg3 {[%clk 0:03:36.5]} 19...
Nf5 {[%clk 0:03:41.3]} 20. Qf4 {[%clk 0:03:04.3]} 20... Nxh4 {[%clk 0:03:32.3]}
21. Nh6+ {[%clk 0:03:01.3]} 21... Bxh6 {[%clk 0:03:18.8]} 22. Qxh6 {[%clk
0:03:00.3]} 22... Nf5 {[%clk 0:03:16.1]} 23. Bxf5 {[%clk 0:02:55.3]} 23... exf5
{[%clk 0:03:14.6]} 24. h4 {[%clk 0:02:53.7]} 24... Qd8 {[%clk 0:03:04.5]} 25. h5
{[%clk 0:02:52.2]} 25... Qd5 {[%clk 0:02:53.2]} 26. f3 {[%clk 0:02:44.5]} 26...
Be8 {[%clk 0:02:47.1]} 27. Rae1 {[%clk 0:02:35.6]} 27... Bf7 {[%clk 0:02:40.6]}
28. Re7 {[%clk 0:02:29.3]} 28... d3 {[%clk 0:02:16.6]} 29. cxd3 {[%clk
0:02:20.3]} 29... Qd4+ {[%clk 0:02:06.7]} 30. Kh1 {[%clk 0:02:15.3]} 30... Qh4+
{[%clk 0:02:03.9]} 31. Kg1 {[%clk 0:02:12.1]} 31... Qxh5 {[%clk 0:01:51.6]} 32.
Qf4 {[%clk 0:01:56.4]} 32... Qg5 {[%clk 0:01:47.4]} 33. Qd4 {[%clk 0:01:43.3]}
33... b6 {[%clk 0:01:39.4]} 34. Qd7 {[%clk 0:01:34.5]} 34... Qd2 {[%clk
0:01:06]} 35. Qb7 {[%clk 0:01:30.1]} 35... Rad8 {[%clk 0:00:53.6]} 36. Qxa7
{[%clk 0:00:59.6]} 36... Qxd3 {[%clk 0:00:49.6]} 37. a4 {[%clk 0:00:51.1]} 37...
Qd4+ {[%clk 0:00:39.7]} 38. Kh1 {[%clk 0:00:47.6]} 38... Qb4 {[%clk 0:00:35.3]}
39. Qc7 {[%clk 0:00:39]} 39... Qd6 {[%clk 0:00:20.3]} 40. Qb7 {[%clk 0:00:19.4]}
40... Rb8 {[%clk 0:00:14.1]} 41. Qa7 {[%clk 0:00:16.8]} 41... Ra8 {[%clk
0:00:12.4]} 42. Qb7 {[%clk 0:00:15.4]} 42... Rab8 {[%clk 0:00:11.6]} 43. Qa7
{[%clk 0:00:13.2]} 43... Rbc8 {[%clk 0:00:10.5]} 44. b4 {[%clk 0:00:09.8]} 44...
Rcd8 {[%clk 0:00:08.5]} 45. b5 {[%clk 0:00:07.9]} 45... Qd4 {[%clk 0:00:06.3]}
46. Qc7 {[%clk 0:00:05.9]} 46... Qh4+ {[%clk 0:00:04.9]} 47. Kg1 {[%clk
0:00:04.2]} 47... Qd4+ {[%clk 0:00:03.1]} 48. Kh2 {[%clk 0:00:02]} 48... Qd6+
{[%clk 0:00:02]} 49. Qxd6 {[%clk 0:00:00.2]} 49... Rxd6 {[%clk 0:00:00.7]} 0-1

[Event "Live Chess"]
[Site "Chess.com"]
[Date "2023.05.20"]
[Round "-"]
[White "Man-Del-Brot"]
[Black "SupremeTactician"]
[Result "0-1"]
[WhiteElo "1070"]
[BlackElo "2366"]
[TimeControl "300"]
[EndTime "13:17:34 PDT"]
[Termination "SupremeTactician won by checkmate"]

1. d4 {[%clk 0:04:53.1]} 1... Nf6 {[%clk 0:04:59.9]} 2. Nf3 {[%clk 0:04:48.6]}
2... e6 {[%clk 0:04:59.8]} 3. Bf4 {[%clk 0:04:46.4]} 3... Be7 {[%clk 0:04:59.7]}
4. e3 {[%clk 0:04:45.5]} 4... O-O {[%clk 0:04:59.6]} 5. Nbd2 {[%clk 0:04:44.1]}
5... b6 {[%clk 0:04:51.5]} 6. c3 {[%clk 0:04:42.3]} 6... Bb7 {[%clk 0:04:51.4]}
7. Be2 {[%clk 0:04:40.1]} 7... d6 {[%clk 0:04:51.1]} 8. h3 {[%clk 0:04:36.5]}
8... Nbd7 {[%clk 0:04:51]} 9. Qc2 {[%clk 0:04:29]} 9... Re8 {[%clk 0:04:50.9]}
10. O-O-O {[%clk 0:04:23]} 10... Nf8 {[%clk 0:04:50.8]} 11. g4 {[%clk
0:04:20.1]} 11... Nd5 {[%clk 0:04:43.8]} 12. Bg3 {[%clk 0:04:14.2]} 12... c5
{[%clk 0:04:36.4]} 13. e4 {[%clk 0:04:13.1]} 13... Nc7 {[%clk 0:04:32]} 14. dxc5
{[%clk 0:04:04.7]} 14... bxc5 {[%clk 0:04:26.1]} 15. Nc4 {[%clk 0:04:02.4]}
15... d5 {[%clk 0:04:22.9]} 16. exd5 {[%clk 0:04:00.3]} 16... exd5 {[%clk
0:04:20.2]} 17. Bxc7 {[%clk 0:03:14.9]} 17... Qxc7 {[%clk 0:04:15]} 18. Ne3
{[%clk 0:03:13.2]} 18... Rad8 {[%clk 0:04:08.1]} 19. Bb5 {[%clk 0:03:06.9]}
19... Bc6 {[%clk 0:04:05.2]} 20. Bxc6 {[%clk 0:02:40.1]} 20... Qxc6 {[%clk
0:04:05.1]} 21. Ne5 {[%clk 0:02:36]} 21... Qe6 {[%clk 0:03:56.6]} 22. f4 {[%clk
0:02:32.2]} 22... f6 {[%clk 0:03:53.8]} 23. Nd3 {[%clk 0:01:15.8]} 23... Qxe3+
{[%clk 0:03:50.9]} 24. Kb1 {[%clk 0:01:14.4]} 24... c4 {[%clk 0:03:50.3]} 25.
Nf2 {[%clk 0:00:57.4]} 25... Bc5 {[%clk 0:03:49.1]} 26. Rhf1 {[%clk 0:00:46]}
26... d4 {[%clk 0:03:45.9]} 27. Rde1 {[%clk 0:00:43.7]} 27... Qxe1+ {[%clk
0:03:44.6]} 28. Rxe1 {[%clk 0:00:41.6]} 28... Rxe1+ {[%clk 0:03:44.5]} 29. Nd1
{[%clk 0:00:39.9]} 29... d3 {[%clk 0:03:43.9]} 30. Qa4 {[%clk 0:00:36.6]} 30...
Rde8 {[%clk 0:03:36.4]} 31. Qxc4+ {[%clk 0:00:34.4]} 31... Kh8 {[%clk
0:03:35.5]} 32. Qxd3 {[%clk 0:00:31.8]} 32... Bb6 {[%clk 0:03:30.4]} 33. a3
{[%clk 0:00:26.7]} 33... Rd8 {[%clk 0:03:29.5]} 34. Qxd8 {[%clk 0:00:19.9]}
34... Bxd8 {[%clk 0:03:24.6]} 35. Kc2 {[%clk 0:00:19]} 35... Rxd1 {[%clk
0:03:24.5]} 36. Kxd1 {[%clk 0:00:17.6]} 36... Ne6 {[%clk 0:03:24.4]} 37. Kc2
{[%clk 0:00:16.7]} 37... Nxf4 {[%clk 0:03:24.3]} 38. Kd2 {[%clk 0:00:15.6]}
38... Nxh3 {[%clk 0:03:23.6]} 39. Ke3 {[%clk 0:00:14.8]} 39... Ng5 {[%clk
0:03:23.5]} 40. Kf4 {[%clk 0:00:13.9]} 40... Bc7+ {[%clk 0:03:23.4]} 41. Kf5
{[%clk 0:00:12.9]} 41... Be5 {[%clk 0:03:20.7]} 42. b4 {[%clk 0:00:12.6]} 42...
g6# {[%clk 0:03:20.6]} 0-1

[Event "Live Chess"]
[Site "Chess.com"]
[Date "2023.05.20"]
[Round "-"]
[White "chessfiction"]
[Black "Pandreq"]
[Result "1-0"]
[WhiteElo "2429"]
[BlackElo "1282"]
[TimeControl "300"]
[EndTime "13:17:49 PDT"]
[Termination "chessfiction won by checkmate"]

1. e4 {[%clk 0:04:59.2]} 1... Nf6 {[%clk 0:04:58.6]} 2. e5 {[%clk 0:04:58.4]}
2... Nd5 {[%clk 0:04:57.9]} 3. Nc3 {[%clk 0:04:58.3]} 3... Nxc3 {[%clk
0:04:56.7]} 4. dxc3 {[%clk 0:04:58.2]} 4... Nc6 {[%clk 0:04:55.2]} 5. Bc4 {[%clk
0:04:56.8]} 5... Nxe5 {[%clk 0:04:51]} 6. Bb3 {[%clk 0:04:56.3]} 6... e6 {[%clk
0:04:48.7]} 7. Nf3 {[%clk 0:04:56.2]} 7... Nxf3+ {[%clk 0:04:46]} 8. Qxf3 {[%clk
0:04:56.1]} 8... d5 {[%clk 0:04:44.8]} 9. Be3 {[%clk 0:04:56]} 9... c5 {[%clk
0:04:41.8]} 10. O-O-O {[%clk 0:04:54.6]} 10... Bd7 {[%clk 0:04:40]} 11. Rxd5
{[%clk 0:04:51.5]} 11... exd5 {[%clk 0:04:34.5]} 12. Bxd5 {[%clk 0:04:51.4]}
12... Be6 {[%clk 0:03:59.6]} 13. Bxb7 {[%clk 0:04:48.9]} 13... Rb8 {[%clk
0:03:58.7]} 14. Rd1 {[%clk 0:04:45.7]} 14... Qb6 {[%clk 0:03:54.9]} 15. Bc6+
{[%clk 0:04:43.6]} 15... Ke7 {[%clk 0:03:47.6]} 16. Qf4 {[%clk 0:04:40.7]} 16...
Qxb2+ {[%clk 0:03:42.2]} 17. Kd2 {[%clk 0:04:40]} 17... Rd8+ {[%clk 0:03:34]}
18. Ke2 {[%clk 0:04:38.6]} 18... Qxc2+ {[%clk 0:03:32.9]} 19. Rd2 {[%clk
0:04:35.3]} 19... Qf5 {[%clk 0:03:27.6]} 20. Qc7+ {[%clk 0:04:27.7]} 20... Bd7
{[%clk 0:03:24.3]} 21. g4 {[%clk 0:04:07.1]} 21... Qe6 {[%clk 0:03:19.2]} 22.
Bd5 {[%clk 0:03:57.1]} 22... Qa6+ {[%clk 0:03:00.9]} 23. c4 {[%clk 0:03:53.2]}
23... Qd6 {[%clk 0:02:53.3]} 24. Bxc5 {[%clk 0:03:48.7]} 24... Qxc5 {[%clk
0:02:43.2]} 25. Qxc5+ {[%clk 0:03:44.7]} 25... Ke8 {[%clk 0:02:41.4]} 26. Qxa7
{[%clk 0:03:41.4]} 26... Bxg4+ {[%clk 0:02:36]} 27. f3 {[%clk 0:03:40]} 27...
Bf5 {[%clk 0:02:31.6]} 28. Qxf7# {[%clk 0:03:38.9]} 1-0